[Event "Live Chess"]
[Site "Chess.com"]
[Date "2023.05.20"]
[Round "-"]
[White "TheSmoulderingMaster"]
[Black "Ferrarifan27"]
[Result "1/2-1/2"]
[WhiteElo "1731"]
[BlackElo "2071"]
[TimeControl "300"]
[EndTime "12:29:10 PDT"]
[Termination "Game drawn by agreement"]

1. e4 {[%clk 0:04:58]} 1... e5 {[%clk 0:04:58.2]} 2. Nf3 {[%clk 0:04:57.1]} 2...
Nc6 {[%clk 0:04:56.5]} 3. Bb5 {[%clk 0:04:56.2]} 3... a6 {[%clk 0:04:54.7]} 4.
Ba4 {[%clk 0:04:55.6]} 4... Nf6 {[%clk 0:04:53.4]} 5. O-O {[%clk 0:04:53.5]}
5... Be7 {[%clk 0:04:52.3]} 6. c3 {[%clk 0:04:51.7]} 6... Nxe4 {[%clk
0:04:48.4]} 7. Re1 {[%clk 0:04:50.4]} 7... Nc5 {[%clk 0:04:47.5]} 8. Bc2 {[%clk
0:04:49]} 8... d6 {[%clk 0:04:45.1]} 9. d4 {[%clk 0:04:48]} 9... exd4 {[%clk
0:04:44.1]} 10. cxd4 {[%clk 0:04:47.1]} 10... Nd7 {[%clk 0:04:42.1]} 11. Nc3
{[%clk 0:04:43.5]} 11... O-O {[%clk 0:04:39.8]} 12. Re4 {[%clk 0:04:37.4]} 12...
Nf6 {[%clk 0:04:32.2]} 13. Rh4 {[%clk 0:04:34.5]} 13... g6 {[%clk 0:04:29.1]}
14. Ng5 {[%clk 0:04:32]} 14... Nh5 {[%clk 0:04:22.4]} 15. Rxh5 {[%clk 0:04:28]}
15... Nb4 {[%clk 0:04:01.4]} 16. Bb1 {[%clk 0:04:12.4]} 16... f5 {[%clk
0:03:40.5]} 17. Qb3+ {[%clk 0:03:59.7]} 17... d5 {[%clk 0:03:37.6]} 18. a3
{[%clk 0:03:45.8]} 18... gxh5 {[%clk 0:03:33]} 19. axb4 {[%clk 0:03:41.3]} 19...
Bxg5 {[%clk 0:03:31.3]} 20. Nxd5 {[%clk 0:03:40.6]} 20... Be6 {[%clk 0:03:24.4]}
21. Ba2 {[%clk 0:03:34.6]} 21... Bxc1 {[%clk 0:03:20]} 22. Rxc1 {[%clk
0:03:32.9]} 22... c6 {[%clk 0:03:19]} 23. Qg3+ {[%clk 0:03:27.5]} 23... Kh8
{[%clk 0:03:16.6]} 24. Qe5+ {[%clk 0:03:21.7]} 24... Kg8 {[%clk 0:03:15.3]} 25.
Qxe6+ {[%clk 0:03:20.7]} 25... Kg7 {[%clk 0:03:09.2]} 26. Ne7 {[%clk 0:03:15.7]}
26... f4 {[%clk 0:02:40.7]} 27. Nf5+ {[%clk 0:03:13.6]} 27... Kh8 {[%clk
0:02:39.2]} 28. Qe5+ {[%clk 0:03:12.1]} 28... Qf6 {[%clk 0:02:37.2]} 29. Qxf6+
{[%clk 0:03:04.6]} 29... Rxf6 {[%clk 0:02:37.1]} 30. Ne7 {[%clk 0:02:55.6]}
30... Re8 {[%clk 0:02:33.4]} 31. Re1 {[%clk 0:02:41.2]} 31... Rd6 {[%clk
0:02:31.4]} 32. Bf7 {[%clk 0:02:25.2]} 32... Rf8 {[%clk 0:02:29.8]} 33. Bxh5
{[%clk 0:02:23.4]} 33... Rxd4 {[%clk 0:02:26.8]} 34. h3 {[%clk 0:02:13.5]} 34...
Rxb4 {[%clk 0:02:25.1]} 35. Re6 {[%clk 0:02:04.6]} 35... Rxb2 {[%clk 0:02:22.5]}
36. Bg4 {[%clk 0:02:00.9]} 36... a5 {[%clk 0:02:18.8]} 37. Nf5 {[%clk
0:01:59.1]} 37... Rb5 {[%clk 0:02:13.8]} 38. Re7 {[%clk 0:01:57.1]} 38... Rbxf5
{[%clk 0:02:09.4]} 39. Bxf5 {[%clk 0:01:55.8]} 39... Rxf5 {[%clk 0:02:08.7]} 40.
Rxb7 {[%clk 0:01:55]} 40... Rb5 {[%clk 0:01:59]} 41. Ra7 {[%clk 0:01:53.7]}
41... Kg8 {[%clk 0:01:54.5]} 42. Kf1 {[%clk 0:01:52.9]} 42... h5 {[%clk
0:01:52.9]} 43. Ke2 {[%clk 0:01:51.9]} 43... Kf8 {[%clk 0:01:33.6]} 44. Kf3
{[%clk 0:01:50.6]} 44... Rf5 {[%clk 0:01:30.7]} 45. Ra6 {[%clk 0:01:47.5]} 45...
Rc5 {[%clk 0:01:17]} 46. Kxf4 {[%clk 0:01:44.9]} 46... Ke7 {[%clk 0:01:16.2]}
47. g4 {[%clk 0:01:38.9]} 47... hxg4 {[%clk 0:01:14.1]} 48. hxg4 {[%clk
0:01:37.8]} 48... Kd6 {[%clk 0:01:12]} 49. g5 {[%clk 0:01:36.4]} 49... Ke6
{[%clk 0:01:08.5]} 50. Kg4 {[%clk 0:01:33.2]} 50... Rc4+ {[%clk 0:01:05]} 51. f4
{[%clk 0:01:31.9]} 51... a4 {[%clk 0:00:59.8]} 52. g6 {[%clk 0:01:27.2]} 52...
Kf6 {[%clk 0:00:57.6]} 53. Kh5 {[%clk 0:01:24.3]} 53... Rxf4 {[%clk 0:00:44.6]}
54. Rxc6+ {[%clk 0:01:22.3]} 54... Kg7 {[%clk 0:00:43.8]} 55. Rc7+ {[%clk
0:01:21.1]} 55... Kg8 {[%clk 0:00:43]} 56. Rc8+ {[%clk 0:01:19.2]} 56... Kg7
{[%clk 0:00:42.2]} 57. Rc7+ {[%clk 0:01:18.4]} 57... Kg8 {[%clk 0:00:41.2]} 58.
Ra7 {[%clk 0:01:14.5]} 58... Rb4 {[%clk 0:00:35.5]} 59. Kg5 {[%clk 0:01:11.9]}
59... Rb5+ {[%clk 0:00:34.1]} 60. Kf6 {[%clk 0:01:10.8]} 60... Rb6+ {[%clk
0:00:33.4]} 61. Kg5 {[%clk 0:01:08.1]} 61... Rb5+ {[%clk 0:00:32.5]} 62. Kh6
{[%clk 0:01:07.5]} 62... Rb8 {[%clk 0:00:26.3]} 63. Rxa4 {[%clk 0:01:06.2]}
63... Rc8 {[%clk 0:00:24.1]} 64. Ra7 {[%clk 0:01:03.8]} 64... Rb8 {[%clk
0:00:23]} 65. Rg7+ {[%clk 0:01:00.2]} 65... Kh8 {[%clk 0:00:22.2]} 66. Rh7+
{[%clk 0:00:59.7]} 66... Kg8 {[%clk 0:00:21]} 67. Rd7 {[%clk 0:00:55.9]} 67...
Ra8 {[%clk 0:00:19.3]} 68. Rd6 {[%clk 0:00:55]} 68... Rb8 {[%clk 0:00:17.4]} 69.
g7 {[%clk 0:00:53.4]} 69... Ra8 {[%clk 0:00:15.3]} 70. Rf6 {[%clk 0:00:51]}
70... Rb8 {[%clk 0:00:14.4]} 71. Ra6 {[%clk 0:00:49.3]} 71... Rc8 {[%clk
0:00:13.5]} 1/2-1/2

[Event "Live Chess"]
[Site "Chess.com"]
[Date "2023.05.20"]
[Round "-"]
[White "OleksiyJr1"]
[Black "whitedjohn"]
[Result "0-1"]
[WhiteElo "933"]
[BlackElo "1662"]
[TimeControl "300"]
[EndTime "12:29:14 PDT"]
[Termination "whitedjohn won by resignation"]

1. e4 {[%clk 0:04:58.6]} 1... Nf6 {[%clk 0:04:56.3]} 2. Nc3 {[%clk 0:04:55.8]}
2... d5 {[%clk 0:04:53.4]} 3. e5 {[%clk 0:04:51.8]} 3... Nfd7 {[%clk 0:04:51.8]}
4. d4 {[%clk 0:04:51.1]} 4... e6 {[%clk 0:04:50.4]} 5. Nf3 {[%clk 0:04:50.2]}
5... c5 {[%clk 0:04:49.3]} 6. Be3 {[%clk 0:04:44.1]} 6... Nc6 {[%clk 0:04:48.4]}
7. Ne2 {[%clk 0:04:41.9]} 7... Qb6 {[%clk 0:04:47]} 8. Rb1 {[%clk 0:04:38]} 8...
cxd4 {[%clk 0:04:43.4]} 9. Nexd4 {[%clk 0:04:36.9]} 9... Qa5+ {[%clk 0:04:36.1]}
10. Bd2 {[%clk 0:04:32.6]} 10... Qxa2 {[%clk 0:04:33.1]} 11. Nxc6 {[%clk
0:04:29.9]} 11... bxc6 {[%clk 0:04:29.6]} 12. Bd3 {[%clk 0:04:24.8]} 12... Qa4
{[%clk 0:04:21.4]} 13. b3 {[%clk 0:04:20.3]} 13... Qg4 {[%clk 0:04:17.9]} 14.
O-O {[%clk 0:03:53.5]} 14... Be7 {[%clk 0:03:51.7]} 15. h3 {[%clk 0:03:51.2]}
15... Qh5 {[%clk 0:03:49.1]} 16. Be2 {[%clk 0:03:48.1]} 16... h6 {[%clk
0:03:22.3]} 17. Nd4 {[%clk 0:03:42.2]} 17... Qxe5 {[%clk 0:03:20.6]} 18. Bc3
{[%clk 0:03:38.1]} 18... Qc7 {[%clk 0:03:16.6]} 19. Nf3 {[%clk 0:03:32.9]} 19...
Bf6 {[%clk 0:03:09.3]} 20. Bxf6 {[%clk 0:03:24.2]} 20... Nxf6 {[%clk 0:03:06.6]}
21. c4 {[%clk 0:03:24.1]} 21... O-O {[%clk 0:03:01.9]} 22. Re1 {[%clk 0:03:19]}
22... a5 {[%clk 0:02:54.8]} 23. Ne5 {[%clk 0:03:10.7]} 23... Ne4 {[%clk
0:02:47.3]} 24. Bf3 {[%clk 0:03:08.5]} 24... Nc3 {[%clk 0:02:43]} 25. Qc2 {[%clk
0:03:04.2]} 25... Nxb1 {[%clk 0:02:41.1]} 26. Qxb1 {[%clk 0:03:04.1]} 26... Ba6
{[%clk 0:02:29.2]} 27. cxd5 {[%clk 0:03:02.2]} 27... cxd5 {[%clk 0:02:26.6]} 28.
Rc1 {[%clk 0:02:53]} 28... Qxe5 {[%clk 0:02:19]} 29. Rc6 {[%clk 0:02:50.7]} 0-1

[Event "Live Chess"]
[Site "Chess.com"]
[Date "2023.05.20"]
[Round "-"]
[White "HugeManAmin"]
[Black "manthanit"]
[Result "0-1"]
[WhiteElo "1109"]
[BlackElo "994"]
[TimeControl "300"]
[EndTime "12:29:16 PDT"]
[Termination "manthanit won by resignation"]

1. e4 {[%clk 0:04:58.4]} 1... e6 {[%clk 0:04:59.1]} 2. d4 {[%clk 0:04:55.9]}
2... d5 {[%clk 0:04:58.6]} 3. Nc3 {[%clk 0:04:52.6]} 3... a6 {[%clk 0:04:55.9]}
4. Nf3 {[%clk 0:04:43.7]} 4... c5 {[%clk 0:04:54.8]} 5. Qe2 {[%clk 0:04:32]}
5... Nf6 {[%clk 0:04:45.8]} 6. exd5 {[%clk 0:04:21.9]} 6... Nxd5 {[%clk
0:04:43.9]} 7. Be3 {[%clk 0:03:56.6]} 7... Qb6 {[%clk 0:04:20.6]} 8. O-O-O
{[%clk 0:03:47.4]} 8... Nc6 {[%clk 0:04:18.6]} 9. dxc5 {[%clk 0:03:39.7]} 9...
Bxc5 {[%clk 0:04:16.5]} 10. Na4 {[%clk 0:03:20.3]} 10... Bxe3+ {[%clk
0:03:58.1]} 11. fxe3 {[%clk 0:03:19.6]} 11... Qa5 {[%clk 0:03:54]} 12. Nc3
{[%clk 0:03:08.5]} 12... O-O {[%clk 0:03:46.2]} 13. e4 {[%clk 0:02:52.6]} 13...
Nxc3 {[%clk 0:03:44.9]} 14. bxc3 {[%clk 0:02:46.1]} 14... Qxc3 {[%clk
0:03:43.5]} 15. Qc4 {[%clk 0:02:40.7]} 15... Qa1+ {[%clk 0:03:41.6]} 16. Kd2
{[%clk 0:02:39.5]} 16... Rd8+ {[%clk 0:03:38.7]} 0-1

[Event "Live Chess"]
[Site "Chess.com"]
[Date "2023.05.20"]
[Round "-"]
[White "PiotrD11"]
[Black "AbilifyXL"]
[Result "0-1"]
[WhiteElo "1346"]
[BlackElo "1946"]
[TimeControl "300"]
[EndTime "12:29:17 PDT"]
[Termination "AbilifyXL won by resignation"]

1. e4 {[%clk 0:04:58.7]} 1... d5 {[%clk 0:04:59.9]} 2. exd5 {[%clk 0:04:57]}
2... Qxd5 {[%clk 0:04:59.8]} 3. Nc3 {[%clk 0:04:56.3]} 3... Qa5 {[%clk
0:04:57.8]} 4. d4 {[%clk 0:04:55.3]} 4... c6 {[%clk 0:04:56.7]} 5. Nf3 {[%clk
0:04:54.3]} 5... Nf6 {[%clk 0:04:55.9]} 6. Bd2 {[%clk 0:04:53.5]} 6... Bg4
{[%clk 0:04:55]} 7. Bc4 {[%clk 0:04:43.7]} 7... e6 {[%clk 0:04:53.8]} 8. Ne4
{[%clk 0:04:41.3]} 8... Qd8 {[%clk 0:04:51]} 9. c3 {[%clk 0:04:34.6]} 9... Nxe4
{[%clk 0:04:50]} 10. O-O {[%clk 0:04:27.1]} 10... Nd7 {[%clk 0:04:48.4]} 11. Bf4
{[%clk 0:04:10.8]} 11... Ndf6 {[%clk 0:04:46.3]} 12. h3 {[%clk 0:04:09.5]} 12...
Bh5 {[%clk 0:04:45.1]} 13. Qd3 {[%clk 0:04:02.3]} 13... Bd6 {[%clk 0:04:41.6]}
14. Ne5 {[%clk 0:03:56.2]} 14... Bg6 {[%clk 0:04:37.3]} 15. Nxg6 {[%clk
0:03:52.8]} 15... hxg6 {[%clk 0:04:33.9]} 16. Bxd6 {[%clk 0:03:50.2]} 16... Nxd6
{[%clk 0:04:32.4]} 17. Bb3 {[%clk 0:03:46.3]} 17... Qc7 {[%clk 0:04:31.3]} 18.
Rad1 {[%clk 0:03:45.6]} 18... Nf5 {[%clk 0:04:27.5]} 19. a4 {[%clk 0:03:39.6]}
19... Ng4 {[%clk 0:04:25]} 20. f4 {[%clk 0:03:30]} 20... Nge3 {[%clk 0:04:20.8]}
21. Rde1 {[%clk 0:03:17.4]} 21... Nxf1 {[%clk 0:04:18.4]} 22. Rxf1 {[%clk
0:03:14.6]} 22... O-O {[%clk 0:04:14.8]} 23. Bc2 {[%clk 0:03:11.3]} 23... Rad8
{[%clk 0:04:12.3]} 24. g4 {[%clk 0:03:08]} 24... Ne7 {[%clk 0:04:09.2]} 25. f5
{[%clk 0:03:03.2]} 25... exf5 {[%clk 0:04:07.3]} 26. gxf5 {[%clk 0:03:01.4]}
26... Nxf5 {[%clk 0:04:02.9]} 27. Rxf5 {[%clk 0:02:59]} 27... gxf5 {[%clk
0:04:01.8]} 28. Qxf5 {[%clk 0:02:58.9]} 28... g6 {[%clk 0:04:00.7]} 29. Qg5
{[%clk 0:02:55.5]} 29... Rd5 {[%clk 0:03:56.6]} 0-1

[Event "Live Chess"]
[Site "Chess.com"]
[Date "2023.05.20"]
[Round "-"]
[White "LL220284LL"]
[Black "sup3rm0nk3y"]
[Result "1-0"]
[WhiteElo "2401"]
[BlackElo "1320"]
[TimeControl "300"]
[EndTime "12:29:21 PDT"]
[Termination "LL220284LL won by checkmate"]

1. c4 {[%clk 0:04:56.4]} 1... c5 {[%clk 0:04:58]} 2. g3 {[%clk 0:04:55]} 2...
Nc6 {[%clk 0:04:57.2]} 3. Bg2 {[%clk 0:04:53.4]} 3... e6 {[%clk 0:04:52.5]} 4.
Nf3 {[%clk 0:04:52.7]} 4... Bd6 {[%clk 0:04:50.1]} 5. O-O {[%clk 0:04:50.6]}
5... Nf6 {[%clk 0:04:49.2]} 6. Nc3 {[%clk 0:04:49.6]} 6... O-O {[%clk
0:04:48.2]} 7. d4 {[%clk 0:04:48.8]} 7... cxd4 {[%clk 0:04:46.9]} 8. Nxd4 {[%clk
0:04:48.2]} 8... Re8 {[%clk 0:04:41.6]} 9. Ndb5 {[%clk 0:04:42.9]} 9... Bc7
{[%clk 0:04:22.5]} 10. Nxc7 {[%clk 0:04:40.4]} 10... Qxc7 {[%clk 0:04:21.3]} 11.
Nb5 {[%clk 0:04:38.7]} 11... Qd8 {[%clk 0:03:58.7]} 12. Nd6 {[%clk 0:04:34.7]}
12... Rf8 {[%clk 0:03:56.9]} 13. a3 {[%clk 0:04:31.1]} 13... Ne8 {[%clk
0:03:52]} 14. Bf4 {[%clk 0:04:27.5]} 14... Nxd6 {[%clk 0:03:49.6]} 15. Bxd6
{[%clk 0:04:26]} 15... Re8 {[%clk 0:03:48.6]} 16. b4 {[%clk 0:04:24.7]} 16...
Ne7 {[%clk 0:03:24.3]} 17. g4 {[%clk 0:04:16.7]} 17... f5 {[%clk 0:02:58.4]} 18.
h3 {[%clk 0:04:15.2]} 18... fxg4 {[%clk 0:02:44.5]} 19. hxg4 {[%clk 0:04:15.1]}
19... a6 {[%clk 0:02:24.6]} 20. Qd3 {[%clk 0:04:09.6]} 20... Ra7 {[%clk
0:02:15.9]} 21. Be4 {[%clk 0:04:07.3]} 21... g6 {[%clk 0:02:13.3]} 22. Kg2
{[%clk 0:04:00.4]} 22... b5 {[%clk 0:02:04.2]} 23. Bc5 {[%clk 0:03:54.7]} 23...
Rc7 {[%clk 0:01:56.8]} 24. cxb5 {[%clk 0:03:52.5]} 24... axb5 {[%clk 0:01:49.2]}
25. Bb6 {[%clk 0:03:50.5]} 25... d5 {[%clk 0:01:36.7]} 26. Rac1 {[%clk
0:03:48.7]} 26... dxe4 {[%clk 0:01:30.6]} 27. Qxd8 {[%clk 0:03:47.1]} 27... Rxd8
{[%clk 0:01:28.3]} 28. Bxc7 {[%clk 0:03:45.2]} 28... Rd2 {[%clk 0:01:20.6]} 29.
Bf4 {[%clk 0:03:42.6]} 29... Rxe2 {[%clk 0:01:17.5]} 30. Bg5 {[%clk 0:03:40.2]}
30... Nd5 {[%clk 0:01:14.1]} 31. Rxc8+ {[%clk 0:03:38.9]} 31... Kf7 {[%clk
0:01:10]} 32. Rh1 {[%clk 0:03:36.7]} 32... e3 {[%clk 0:00:57.1]} 33. Rxh7#
{[%clk 0:03:34.4]} 1-0

[Event "Live Chess"]
[Site "Chess.com"]
[Date "2023.05.20"]
[Round "-"]
[White "Stanbad1"]
[Black "gggoodgamebroski"]
[Result "1-0"]
[WhiteElo "2432"]
[BlackElo "507"]
[TimeControl "300"]
[EndTime "12:29:25 PDT"]
[Termination "Stanbad1 won by resignation"]

1. d4 {[%clk 0:04:57.2]} 1... d5 {[%clk 0:04:50.1]} 2. Nc3 {[%clk 0:04:55.4]}
2... e6 {[%clk 0:04:50]} 3. Bf4 {[%clk 0:04:54.1]} 3... c6 {[%clk 0:04:49.9]} 4.
e3 {[%clk 0:04:52.9]} 4... b5 {[%clk 0:04:49.8]} 5. Nf3 {[%clk 0:04:51.9]} 5...
a6 {[%clk 0:04:49.7]} 6. Ne5 {[%clk 0:04:51.1]} 6... f5 {[%clk 0:04:49.6]} 7.
Qh5+ {[%clk 0:04:48.1]} 7... g6 {[%clk 0:04:49.5]} 8. Nxg6 {[%clk 0:04:47.2]}
8... Ne7 {[%clk 0:04:46.3]} 9. Ne5+ {[%clk 0:04:44.4]} 9... Ng6 {[%clk
0:04:37.8]} 10. Nxg6 {[%clk 0:04:42.8]} 10... hxg6 {[%clk 0:04:36.5]} 11. Qxh8
{[%clk 0:04:41.8]} 11... Qa5 {[%clk 0:04:27.8]} 12. Bd6 {[%clk 0:04:39.4]} 12...
Nd7 {[%clk 0:04:21.9]} 13. Bxf8 {[%clk 0:04:37.9]} 13... Nxf8 {[%clk 0:04:20.8]}
14. Bd3 {[%clk 0:04:35.9]} 14... Bd7 {[%clk 0:04:05.7]} 15. Qe5 {[%clk
0:04:32.1]} 15... O-O-O {[%clk 0:04:00.9]} 16. O-O {[%clk 0:04:30.8]} 16... Re8
{[%clk 0:03:50.9]} 17. a3 {[%clk 0:04:28.3]} 17... Qb6 {[%clk 0:03:41.3]} 18. b4
{[%clk 0:04:26]} 18... f4 {[%clk 0:03:29.9]} 19. Qxf4 {[%clk 0:04:21.3]} 1-0

[Event "Live Chess"]
[Site "Chess.com"]
[Date "2023.05.20"]
[Round "-"]
[White "Doge_Dandolo"]
[Black "AdamOwls"]
[Result "0-1"]
[WhiteElo "2005"]
[BlackElo "1958"]
[TimeControl "300"]
[EndTime "12:29:30 PDT"]
[Termination "AdamOwls won by resignation"]

1. Nf3 {[%clk 0:04:57.2]} 1... d5 {[%clk 0:04:58.1]} 2. c4 {[%clk 0:04:54.1]}
2... c6 {[%clk 0:04:56.4]} 3. g3 {[%clk 0:04:45.5]} 3... Nf6 {[%clk 0:04:54.7]}
4. Bg2 {[%clk 0:04:37.6]} 4... Bf5 {[%clk 0:04:52.8]} 5. Qb3 {[%clk 0:04:34]}
5... Qb6 {[%clk 0:04:50.6]} 6. d3 {[%clk 0:04:31.2]} 6... e6 {[%clk 0:04:48.3]}
7. Be3 {[%clk 0:04:29]} 7... Qc7 {[%clk 0:04:41.8]} 8. O-O {[%clk 0:04:26.7]}
8... Nbd7 {[%clk 0:04:38.1]} 9. Nc3 {[%clk 0:04:25.3]} 9... Be7 {[%clk
0:04:30.9]} 10. Rfc1 {[%clk 0:04:23.4]} 10... Nb6 {[%clk 0:04:22.9]} 11. Bf4
{[%clk 0:04:19]} 11... Qd7 {[%clk 0:04:18.7]} 12. Ne5 {[%clk 0:04:16.7]} 12...
Qc8 {[%clk 0:04:02.9]} 13. cxd5 {[%clk 0:04:07.2]} 13... exd5 {[%clk 0:04:00.9]}
14. e4 {[%clk 0:04:04]} 14... dxe4 {[%clk 0:03:54.6]} 15. Qxf7+ {[%clk
0:04:01.5]} 15... Kd8 {[%clk 0:03:52.8]} 16. dxe4 {[%clk 0:03:54.8]} 16... Be6
{[%clk 0:03:51.5]} 17. Qxg7 {[%clk 0:03:49.2]} 17... Rg8 {[%clk 0:03:48.8]} 18.
Qxh7 {[%clk 0:03:41.6]} 18... Nxh7 {[%clk 0:03:45.1]} 0-1

[Event "Live Chess"]
[Site "Chess.com"]
[Date "2023.05.20"]
[Round "-"]
[White "worldchessleaguelive"]
[Black "BostonStrangler"]
[Result "0-1"]
[WhiteElo "1367"]
[BlackElo "2066"]
[TimeControl "300"]
[EndTime "12:29:34 PDT"]
[Termination "BostonStrangler won by resignation"]

1. d4 {[%clk 0:04:59.1]} 1... Nf6 {[%clk 0:04:58.6]} 2. Bf4 {[%clk 0:04:58]}
2... g6 {[%clk 0:04:57.1]} 3. Nf3 {[%clk 0:04:57.7]} 3... Bg7 {[%clk 0:04:55.9]}
4. e3 {[%clk 0:04:57.4]} 4... d6 {[%clk 0:04:55]} 5. Be2 {[%clk 0:04:57.1]} 5...
O-O {[%clk 0:04:53.8]} 6. O-O {[%clk 0:04:56.7]} 6... Nc6 {[%clk 0:04:52.7]} 7.
Nbd2 {[%clk 0:04:55.3]} 7... e5 {[%clk 0:04:50.2]} 8. dxe5 {[%clk 0:04:53.6]}
8... Nh5 {[%clk 0:04:42.2]} 9. Bg3 {[%clk 0:04:43.5]} 9... Nxg3 {[%clk
0:04:37.8]} 10. hxg3 {[%clk 0:04:39.8]} 10... Nxe5 {[%clk 0:04:36.7]} 11. Nxe5
{[%clk 0:04:38.5]} 11... dxe5 {[%clk 0:04:33.8]} 12. Nf3 {[%clk 0:04:37]} 12...
Be6 {[%clk 0:04:30.1]} 13. Qxd8 {[%clk 0:04:34.5]} 13... Rfxd8 {[%clk
0:04:28.7]} 14. Rad1 {[%clk 0:04:33.9]} 14... f6 {[%clk 0:04:27.7]} 15. Rxd8+
{[%clk 0:04:32.2]} 15... Rxd8 {[%clk 0:04:25.9]} 16. Rd1 {[%clk 0:04:31.1]}
16... Rxd1+ {[%clk 0:04:24.8]} 17. Bxd1 {[%clk 0:04:30.5]} 17... Kf7 {[%clk
0:04:23.8]} 18. b3 {[%clk 0:04:29.3]} 18... h6 {[%clk 0:04:22.3]} 19. c4 {[%clk
0:04:28.2]} 19... f5 {[%clk 0:04:20.7]} 20. Kf1 {[%clk 0:04:26.5]} 20... c5
{[%clk 0:04:19]} 21. Ke2 {[%clk 0:04:25.5]} 21... e4 {[%clk 0:04:14.1]} 22. Ne1
{[%clk 0:04:23.1]} 22... Be5 {[%clk 0:04:09.1]} 23. f4 {[%clk 0:04:20.6]} 23...
Bc7 {[%clk 0:04:05]} 24. Nc2 {[%clk 0:04:18.4]} 24... Ba5 {[%clk 0:04:01.5]} 25.
Na3 {[%clk 0:04:16.6]} 25... a6 {[%clk 0:03:59.8]} 26. Nb1 {[%clk 0:04:13.2]}
26... Ke7 {[%clk 0:03:49.5]} 27. Nd2 {[%clk 0:04:12]} 27... Kd7 {[%clk
0:03:47.9]} 28. Nf1 {[%clk 0:03:58.5]} 28... Kc6 {[%clk 0:03:46.3]} 29. Nh2
{[%clk 0:03:57.2]} 29... h5 {[%clk 0:03:39.5]} 30. Nf1 {[%clk 0:03:54.7]} 30...
Bc3 {[%clk 0:03:32.8]} 31. Nd2 {[%clk 0:03:52.4]} 31... Kb6 {[%clk 0:03:31.3]}
32. Nb1 {[%clk 0:03:51]} 32... Ba5 {[%clk 0:03:27.3]} 33. a3 {[%clk 0:03:48.1]}
33... Kc6 {[%clk 0:03:24.4]} 34. Bc2 {[%clk 0:03:46.2]} 34... b5 {[%clk
0:03:20.8]} 35. cxb5+ {[%clk 0:03:39]} 35... axb5 {[%clk 0:03:19.5]} 36. a4
{[%clk 0:03:38.1]} 36... bxa4 {[%clk 0:03:14.9]} 37. bxa4 {[%clk 0:03:37.1]}
37... Bc4+ {[%clk 0:03:14.5]} 38. Kf2 {[%clk 0:03:33.6]} 38... Ba2 {[%clk
0:03:09.9]} 39. Ke2 {[%clk 0:03:27]} 39... c4 {[%clk 0:03:06.6]} 40. Nd2 {[%clk
0:03:24]} 40... Kc5 {[%clk 0:03:00.1]} 41. Kd1 {[%clk 0:03:13.2]} 41... Kb4
{[%clk 0:02:53.9]} 42. Bb1 {[%clk 0:03:03.6]} 42... Bxb1 {[%clk 0:02:48.1]} 43.
Nxb1 {[%clk 0:03:02.7]} 43... Kxa4 {[%clk 0:02:45.8]} 44. Kc2 {[%clk 0:02:59.5]}
44... Kb5 {[%clk 0:02:41.8]} 45. Na3+ {[%clk 0:02:55.3]} 45... Kc5 {[%clk
0:02:40.7]} 46. Kd1 {[%clk 0:02:44.4]} 46... Kb4 {[%clk 0:02:28]} 47. Nc2+
{[%clk 0:02:43.5]} 47... Kc3 {[%clk 0:02:25.2]} 48. Nd4 {[%clk 0:02:42.6]} 48...
Kd3 {[%clk 0:02:24]} 49. Nc6 {[%clk 0:02:39.1]} 49... Bb6 {[%clk 0:02:20.8]} 50.
Ne5+ {[%clk 0:02:35.7]} 50... Kxe3 {[%clk 0:02:15.7]} 51. Nxc4+ {[%clk
0:02:34.3]} 51... Kf2 {[%clk 0:02:13.6]} 52. Nxb6 {[%clk 0:02:32.4]} 52... Kxg2
{[%clk 0:02:10.2]} 53. Ke2 {[%clk 0:02:24.4]} 53... Kxg3 {[%clk 0:02:08.5]} 54.
Nd5 {[%clk 0:02:23.2]} 54... h4 {[%clk 0:02:06.9]} 55. Kf1 {[%clk 0:02:21.6]}
55... h3 {[%clk 0:02:05.4]} 56. Kg1 {[%clk 0:02:20.3]} 56... Kf3 {[%clk
0:02:04.5]} 57. Kh2 {[%clk 0:02:15.1]} 57... e3 {[%clk 0:02:03.2]} 58. Nxe3
{[%clk 0:02:05.8]} 58... Kxe3 {[%clk 0:02:02]} 59. Kxh3 {[%clk 0:02:05.5]} 59...
Kxf4 {[%clk 0:02:00.5]} 60. Kh4 {[%clk 0:02:05]} 60... Kf3 {[%clk 0:01:58.4]}
0-1

[Event "Live Chess"]
[Site "Chess.com"]
[Date "2023.05.20"]
[Round "-"]
[White "Fayn02"]
[Black "fretle"]
[Result "0-1"]
[WhiteElo "1009"]
[BlackElo "1866"]
[TimeControl "300"]
[EndTime "12:29:38 PDT"]
[Termination "fretle won by checkmate"]

1. d4 {[%clk 0:04:58.9]} 1... Nf6 {[%clk 0:04:57.5]} 2. Bf4 {[%clk 0:04:58.1]}
2... g6 {[%clk 0:04:56.2]} 3. Nf3 {[%clk 0:04:57.5]} 3... Bg7 {[%clk 0:04:55.4]}
4. e3 {[%clk 0:04:56.9]} 4... d5 {[%clk 0:04:54]} 5. Bd3 {[%clk 0:04:56.3]} 5...
O-O {[%clk 0:04:53.2]} 6. c3 {[%clk 0:04:55.7]} 6... Nbd7 {[%clk 0:04:52.3]} 7.
O-O {[%clk 0:04:55]} 7... c5 {[%clk 0:04:50.4]} 8. Nbd2 {[%clk 0:04:52.9]} 8...
Nh5 {[%clk 0:04:47.9]} 9. Be5 {[%clk 0:04:42.9]} 9... Nxe5 {[%clk 0:04:46.2]}
10. Nxe5 {[%clk 0:04:42.8]} 10... f6 {[%clk 0:04:41.9]} 11. Nef3 {[%clk
0:04:39.9]} 11... e5 {[%clk 0:04:40.7]} 12. Bc2 {[%clk 0:04:33.2]} 12... e4
{[%clk 0:04:37.7]} 13. Ne1 {[%clk 0:04:32.6]} 13... cxd4 {[%clk 0:04:31.2]} 14.
cxd4 {[%clk 0:04:30.3]} 14... f5 {[%clk 0:04:30.4]} 15. Nb3 {[%clk 0:04:27.7]}
15... b6 {[%clk 0:04:28.7]} 16. Nd2 {[%clk 0:04:17.2]} 16... f4 {[%clk
0:04:27.6]} 17. exf4 {[%clk 0:04:15.2]} 17... Nxf4 {[%clk 0:04:25.4]} 18. a4
{[%clk 0:04:07.9]} 18... Ba6 {[%clk 0:04:08.4]} 19. b4 {[%clk 0:03:46.3]} 19...
Bxf1 {[%clk 0:04:03.3]} 20. Kxf1 {[%clk 0:03:46.2]} 20... Bxd4 {[%clk
0:04:01.7]} 21. Rb1 {[%clk 0:03:33.4]} 21... Qh4 {[%clk 0:03:54.1]} 22. g3
{[%clk 0:03:17.9]} 22... Qh3+ {[%clk 0:03:53]} 23. Ng2 {[%clk 0:03:13.4]} 23...
Qxg2+ {[%clk 0:03:50.6]} 24. Ke1 {[%clk 0:03:12.2]} 24... Qxf2# {[%clk
0:03:49.1]} 0-1

[Event "Live Chess"]
[Site "Chess.com"]
[Date "2023.05.20"]
[Round "-"]
[White "ossie57"]
[Black "ChippyChill"]
[Result "1-0"]
[WhiteElo "1901"]
[BlackElo "422"]
[TimeControl "300"]
[EndTime "12:29:41 PDT"]
[Termination "ossie57 won by resignation"]

1. d4 {[%clk 0:04:58.9]} 1... d5 {[%clk 0:04:55.8]} 2. Nc3 {[%clk 0:04:57.9]}
2... Nf6 {[%clk 0:04:49.3]} 3. Bf4 {[%clk 0:04:56.7]} 3... Bf5 {[%clk
0:04:42.6]} 4. Nb5 {[%clk 0:04:45.8]} 4... Qd7 {[%clk 0:04:33.8]} 5. Nxc7+
{[%clk 0:04:42.8]} 5... Qxc7 {[%clk 0:04:10.2]} 6. Bxc7 {[%clk 0:04:41.9]} 6...
e6 {[%clk 0:04:01.9]} 7. e3 {[%clk 0:04:38.7]} 7... b6 {[%clk 0:04:01]} 8. Bb5+
{[%clk 0:04:34.5]} 8... Nc6 {[%clk 0:04:00.3]} 9. Bxc6+ {[%clk 0:04:33.6]} 9...
Ke7 {[%clk 0:03:58.9]} 10. Bxa8 {[%clk 0:04:31.8]} 10... Kd7 {[%clk 0:03:55.1]}
11. Be5 {[%clk 0:04:30.5]} 1-0